Cogmind - Beta 10.2 @@@ ROGUE MODE // 2020.11.10 @ 00:01:28 // Halloween2020/ForbiddenLore Player: Salade Result: Destroyed by Y-54 Guardian with Flak Gun Performance ------------- Evolutions (3) 1500 Regions Visited (6) 1200 Robots Destroyed (10) 50 Value Destroyed (217) 217 Prototype IDs (2) 40 Alien Tech Used (0) 0 Bonus (7) 7 TOTAL SCORE: 3014 Bonus ------- Follower Combat Kills 7 Cogmind --------- Core Integrity 0/700 Matter 113/300 Energy 100/100 System Corruption 3% Temperature Cool (0) Movement Core (50) Location -7/Storage Parts ------- > --- POWER (2) -------- (None) > --- PROPULSION (3) --- (None) > --- UTILITY (6) ------ Advanced Weight Redist. System Advanced Signal Interpreter Long-range Terrain Scanner System Backup Module > --- WEAPON (2) ------- (None) > --- INVENTORY (4) ---- (None) Peak State ------------ > --- POWER ------------ Ion Engine Nuclear Core > --- PROPULSION ------- Aerolev Unit VTOL Module Cesium-ion Thruster > --- UTILITY ---------- Small Storage Unit Weight Redist. System Advanced Signal Interpreter Improved Terrain Scanner ECM Suite Utility Shielding > --- WEAPON ----------- Greatsword > --- INVENTORY -------- Flight Unit Advanced Weight Redist. System Long-range Terrain Scanner System Backup Module Heavy EM Pulse Gun EM Shotgun [Rating: 32] Favorites ----------- Power Ion Engine Engine Ion Engine Power Core Nuclear Core Propulsion VTOL Module Leg Aluminum Leg Wheel Wheel Hover Unit Aerolev Unit Flight Unit VTOL Module Utility Small Storage Unit Device ECM Suite Storage Small Storage Unit Processor Advanced Signal Interpreter Protection Utility Shielding Weapon Light Assault Rifle Energy Gun EM Shotgun Ballistic Gun Light Assault Rifle Launcher Rocket Launcher Slashing Weapon Greatsword Build | -11 -10 -9 -9 -8 -7 -7 ------- Run | Scr Mat Mat Min Mat Fac Sto Slots Evolved 6 | . . 2 . 2 2 . Power 1 | . . . . . 1 . Propulsion 1 | . . . . 1 . . Utility 4 | . . 2 . 1 1 . Weapon . | . . . . . . . Parts Attached 47 | 6 9 6 . 9 8 9 Power 7 | 1 . 4 . 1 1 . Engine 6 | 1 . 4 . . 1 . Core 1 | . . . . 1 . . Reactor . | . . . . . . . Propulsion 19 | 2 7 . . 4 2 4 Treads . | . . . . . . . Leg 3 | 2 1 . . . . . Wheel 2 | . 2 . . . . . Hover 2 | . . . . . . 2 Flight 12 | . 4 . . 4 2 2 Utility 14 | 1 2 2 . 3 2 4 Device 8 | . 1 1 . 2 1 3 Storage 2 | 1 1 . . . . . Processor 2 | . . 1 . 1 . . Hackware . | . . . . . . . Protection 2 | . . . . . 1 1 Artifact . | . . . . . . . Weapon 7 | 2 . . . 1 3 1 Energy Gun 3 | . . . . . 2 1 Energy Cannon . | . . . . . . . Ballistic Gun 2 | 2 . . . . . . Ballistic Cannon . | . . . . . . . Launcher 1 | . . . . 1 . . Special Weapon . | . . . . . . . Impact Weapon . | . . . . . . . Slashing Weapon 1 | . . . . . 1 . Piercing Weapon . | . . . . . . . Special Melee Weapon . | . . . . . . . Unidentified Prototypes 2 | . . 1 . . . 1 Parts Lost 19 | . . 1 . 3 1 14 Power 3 | . . 1 . . . 2 Propulsion 7 | . . . . 2 1 4 Utility 6 | . . . . . . 6 Weapon 3 | . . . . 1 . 2 Highest Loss Streak 12 | . . 1 . 2 1 12 Average Slot Usage (%) 79 | . 89 73 66 85 80 58 Engine 8 | . 14 11 11 4 7 2 Core 3 | . . . . 4 7 2 Leg 3 | . 14 . . . . . Wheel 1 | . 4 . . . . . Flight 14 | . 9 22 22 27 16 6 Device 16 | . 7 18 11 24 19 19 Storage 10 | . 19 11 11 9 7 4 Processor 5 | . . 11 11 8 7 7 Protection 3 | . . . . . 6 6 Energy Gun 1 | . . . . . 2 2 Ballistic Gun 5 | . 20 . . . . . Slashing Weapon 1 | . . . . . 3 3 Naked Turns . | . . . . . . . Heaviest Build 24 | 11 14 13 10 17 24 24 Greatest Support 26 | 20 26 10 10 24 23 21 Greatest Overweight (x) 4 | 3 3 1 . 1 2 4 Average Overweight (x) . | . . . . . 1 1 Largest Inventory Capacity 6 | 6 6 6 6 6 6 6 Average Capacity 5 | 5 6 6 6 6 6 5 Most Carried 6 | 4 6 6 6 5 6 6 Average Carried 4 | 2 4 4 6 4 4 3 Final Capacity 6 | 6 6 6 6 6 6 4 Final Carried 6 | 4 6 6 6 5 5 . Class Distribution -------------------- 100% | Mutant Dominant Class ---------------- Mutant | -10/Materials Mutant | -9/Materials Mutant | -9/Mines Mutant | -8/Materials Mutant | -7/Factory Mutant | -7/Storage Resources | -11 -10 -9 -9 -8 -7 -7 ----------- Run | Scr Mat Mat Min Mat Fac Sto Matter Collected 431 | 229 72 . . 5 49 76 Remotely . | . . . . . . . Salvage Created 223 | . 72 . . 26 49 76 Parts 15 | . 2 . . 9 4 . Haulers Intercepted . | . . . . . . . Recyclers Shooed . | . . . . . . . Parts Field Recycled . | . . . . . . . Retrieved Matter . | . . . . . . . Parts Self-Destructed . | . . . . . . . Prevented . | . . . . . . . Kills | -11 -10 -9 -9 -8 -7 -7 ------- Run | Scr Mat Mat Min Mat Fac Sto Combat Hostiles Destroyed 9 | . 2 . . 6 1 . Melee 1 | . . . . . 1 . Guns 2 | . 2 . . . . . AOE 6 | . . . . 6 . . Classes Destroyed 4 | . 1 . . 1 1 1 Recycler 1 | . . . . . . 1 Swarmer 6 | . . . . 6 . . Grunt 2 | . 2 . . . . . Programmer 1 | . . . . . 1 . Best Kill Streak 4 | . 2 . . 4 1 1 Combat Bots Only 4 | . 2 . . 4 1 . Max Kills in Single Turn 4 | . 1 . . 4 1 1 Gunslinging . | . . . . . . . Exploded 4 | . . . . 4 . . Melee 1 | . . . . . 1 . Uniques/NPCs Destroyed . | . . . . . . . Combat | -11 -10 -9 -9 -8 -7 -7 -------- Run | Scr Mat Mat Min Mat Fac Sto Damage Taken 2399 | . 234 111 . 301 209 1544 Core 872 | . 35 18 . 115 44 660 Absorbed by Shields . | . . . . . . . Core Remaining (%) 90 | 100 86 . 95 79 . . Volleys Fired 20 | . 16 . . 4 . . Largest 2 | . 2 . . 1 . . Hottest 40 | . 40 . . 33 . . Shots Fired 36 | . 32 . . 4 . . Gun 32 | . 32 . . . . . Cannon . | . . . . . . . Launcher 4 | . . . . 4 . . Special . | . . . . . . . Kinetic 32 | . 32 . . . . . Thermal . | . . . . . . . Explosive 4 | . . . . 4 . . Electromagnetic . | . . . . . . . Robot Hit Streak 6 | . 6 . . . . . Robot Miss Streak 2 | . 2 . . 2 . . Penetration Max . | . . . . . . . Secondary Targets . | . . . . . . . Shots Hit Robots 29 | . 23 . . . 4 2 Core Hits 19 | . 7 . . 6 2 4 Critical Hits 1 | . . . . . 1 . Critical Kills 1 | . . . . . 1 . Critical Parts Destroyed . | . . . . . . . Melee Attacks 16 | . . . . . 9 7 Impact . | . . . . . . . Slashing 16 | . . . . . 9 7 Piercing . | . . . . . . . Sneak Attacks 1 | . . . . . . 1 Combat Hostiles . | . . . . . . . Follow-up Attacks . | . . . . . . . Damage Inflicted 859 | . 168 . . 256 203 232 Guns 168 | . 168 . . . . . Cannons . | . . . . . . . Explosions 256 | . . . . 256 . . Melee 425 | . . . . . 200 225 Ramming 10 | . . . . . 3 7 Kinetic 168 | . 168 . . . . . Thermal . | . . . . . . . Explosive 256 | . . . . 256 . . Electromagnetic . | . . . . . . . Impact . | . . . . . . . Slashing 425 | . . . . . 200 225 Piercing . | . . . . . . . Highest Corruption 3 | . . . . . 1 3 Average Corruption 1 | . . . . . 1 2 Corruption Purged . | . . . . . . . Effects 2 | . . . . . . 2 Matter Fused 1 | . . . . . . 1 Data Loss (minor) 1 | . . . . . . 1 Overload Shots . | . . . . . . . Overflow Damage 191 | . . . . . 55 136 Projectiles . | . . . . . . . Explosions . | . . . . . . . Melee 191 | . . . . . 55 136 Knockbacks . | . . . . . . . Impact . | . . . . . . . Kinetic . | . . . . . . . Secondary . | . . . . . . . Self-Inflicted Damage 35 | . . . . 33 . 2 Shots 2 | . . . . 2 . . Rammed 12 | . . . . . 4 8 Targets Rammed 12 | . . . . . 4 8 Kicked . | . . . . . . . Crushed . | . . . . . . . Highest Temperature 18 | . 18 . . 1 . 11 Average Temperature 8 | . 9 . . 1 . 5 Received Heat Transfer 921 | . 132 24 . 18 . 747 Siege Activations . | . . . . . . . Robots Corrupted . | . . . . . . . Combat Hostiles . | . . . . . . . Parts Fried . | . . . . . . . Impact Corruptions . | . . . . . . . Robots Melted . | . . . . . . . Combat Hostiles . | . . . . . . . Parts Melted . | . . . . . . . Heat Transferred . | . . . . . . . Parts Sabotaged . | . . . . . . . Parts Stolen . | . . . . . . . Parts Stripped . | . . . . . . . Power Chain Reactions . | . . . . . . . Missiles Intercepted . | . . . . . . . Alert | -11 -10 -9 -9 -8 -7 -7 ------- Run | Scr Mat Mat Min Mat Fac Sto Peak Influence 384 | . 139 258 100 384 169 40 Initial 165 | . . 58 100 39 165 13 Average 106 | . 42 148 100 252 150 11 Maximum Alert Level 1 | . . 1 . 1 . . Low Security (%) 90 | 100 100 74 100 39 100 100 Level 1 9 | . . 25 . 60 . . Level 2 . | . . . . . . . Level 3 . | . . . . . . . Level 4 . | . . . . . . . Level 5 . | . . . . . . . High Security . | . . . . . . . Max Security . | . . . . . . . Squads Dispatched 7 | . 2 3 . 1 1 . Investigation . | . . . . . . . Extermination 1 | . . . . . 1 . Reinforcement 6 | . 2 3 . 1 . . Assault . | . . . . . . . Garrison . | . . . . . . . Intercept . | . . . . . . . Construction Impeded . | . . . . . . . Haulers Reinforced . | . . . . . . . Stealth | -11 -10 -9 -9 -8 -7 -7 --------- Run | Scr Mat Mat Min Mat Fac Sto Distress Signals 5 | . 1 1 . 2 . 1 Communications Jammed . | . . . . . . . Distress Signals . | . . . . . . . Times Spotted 48 | . 10 12 . 15 1 10 Peak Tracking Total 10 | . 3 9 . 8 1 10 Tactical Retreats 8 | . 2 3 . 2 . 1 Traps | -11 -10 -9 -9 -8 -7 -7 ------- Run | Scr Mat Mat Min Mat Fac Sto Traps Triggered . | . . . . . . . Indirectly . | . . . . . . . Trap Hack Attempts . | . . . . . . . Triggered . | . . . . . . . Disarmed . | . . . . . . . Reprogrammed . | . . . . . . . Reused . | . . . . . . . Traps Extracted . | . . . . . . . Installed . | . . . . . . . Triggered . | . . . . . . . Machines | -11 -10 -9 -9 -8 -7 -7 ---------- Run | Scr Mat Mat Min Mat Fac Sto Machines Disabled 1 | . . . . . . 1 Max in Single Turn 1 | . . . . . . 1 Machines Sabotaged . | . . . . . . . Garrisons Compromised . | . . . . . . . Overloaded Fab Kills . | . . . . . . . Fab Network Shutdowns . | . . . . . . . Hacking | -11 -10 -9 -9 -8 -7 -7 --------- Run | Scr Mat Mat Min Mat Fac Sto Machines Accessed 5 | . 2 1 . 1 1 . Terminals 3 | . 1 1 . 1 . . Fabricators 1 | . . . . . 1 . Repair Stations 1 | . 1 . . . . . Recycling Units . | . . . . . . . Scanalyzers . | . . . . . . . Garrison Access . | . . . . . . . Total Hacks 7 | . 2 2 . 1 2 . Successful 5 | . 2 1 . . 2 . Failed 2 | . . 1 . 1 . . Catastrophic . | . . . . . . . Database Lockouts . | . . . . . . . Manual . | . . . . . . . Terminals 4 | . 1 2 . 1 . . Fabricators 2 | . . . . . 2 . Repair Stations 1 | . 1 . . . . . Recycling Units . | . . . . . . . Scanalyzers . | . . . . . . . Garrison Access . | . . . . . . . Terminal Hacks 2 | . 1 1 . . . . Record 1 | . 1 . . . . . Emergency Access Points 1 | . . 1 . . . . Fabricator Hacks 2 | . . . . . 2 . Network Status 1 | . . . . . 1 . Build 1 | . . . . . 1 . Repair Station Hacks 1 | . 1 . . . . . Scan Component 1 | . 1 . . . . . Recycling Unit Hacks . | . . . . . . . Scanalyzer . | . . . . . . . Garrison Access Hacks . | . . . . . . . Unauthorized Hacks . | . . . . . . . Terminals . | . . . . . . . Fabricators . | . . . . . . . Repair Stations . | . . . . . . . Recycling Units . | . . . . . . . Scanalyzers . | . . . . . . . Garrison Access . | . . . . . . . Data Cores Recovered . | . . . . . . . Used . | . . . . . . . Hacking Detections 2 | . 1 . . . 1 . Full Trace Events . | . . . . . . . Feedback Events . | . . . . . . . Feedback Blocked . | . . . . . . . Robot Schematics Acquired . | . . . . . . . Robots Built . | . . . . . . . Matter . | . . . . . . . Time . | . . . . . . . Total Robot Build Rating . | . . . . . . . Part Schematics Acquired . | . . . . . . . Parts Built 2 | . . . . . 2 . Matter 168 | . . . . . 168 . Time 84 | . . . . . 84 . Total Part Build Rating 8 | . . . . . 8 . Parts Repaired . | . . . . . . . Time . | . . . . . . . Parts Recycled . | . . . . . . . Recycled Matter . | . . . . . . . Retrieved Matter . | . . . . . . . Retrieved Components . | . . . . . . . Parts Scanalyzed . | . . . . . . . Part Schematics Acquired . | . . . . . . . Parts Damaged . | . . . . . . . Bothacking | -11 -10 -9 -9 -8 -7 -7 ------------ Run | Scr Mat Mat Min Mat Fac Sto Used RIF Installer . | . . . . . . . Robots Hacked . | . . . . . . . Non-combat . | . . . . . . . Combat . | . . . . . . . Robot Hacks Applied . | . . . . . . . Relay Couplers Released . | . . . . . . . Robots Rewired . | . . . . . . . Allies Hacked . | . . . . . . . Hacks Repelled . | . . . . . . . Allies | -11 -10 -9 -9 -8 -7 -7 -------- Run | Scr Mat Mat Min Mat Fac Sto Total Allies 2 | . . . 2 . . . Largest Group 2 | . . . 2 1 . . Highest-Rated Group 44 | . . . 44 31 . . Highest-Rated Ally 31 | . . . 31 31 . . Total Orders . | . . . . . . . Ally Attacks 3 | . . . . 3 . . Total Damage 41 | . . . . 41 . . Kills 1 | . . . . 1 . . Allies Corrupted . | . . . . . . . Allies Melted . | . . . . . . . Intel | -11 -10 -9 -9 -8 -7 -7 ------- Run | Scr Mat Mat Min Mat Fac Sto Robot Analysis Total . | . . . . . . . Derelict Logs Recovered . | . . . . . . . Drone Launches . | . . . . . . . Drone Recoveries . | . . . . . . . Exploration | -11 -10 -9 -9 -8 -7 -7 ------------- Run | Scr Mat Mat Min Mat Fac Sto Turns Passed 1398 | 76 335 143 30 161 453 200 Spaces Moved 1429 | 52 309 333 77 259 281 118 Core 62 | 7 1 . . . . 54 Treads . | . . . . . . . Legs 134 | 45 89 . . . . . Wheels 54 | . 54 . . . . . Hover 25 | . . . . . . 25 Flight 1154 | . 165 333 77 259 281 39 Fastest Speed 34 | 50 37 37 37 34 34 50 Average Speed 72 | 122 75 37 37 34 123 128 Slowest Speed 250 | 200 200 117 37 120 197 250 Overloaded Moves . | . . . . . . . Propulsion Burnouts . | . . . . . . . Robots Hopped 5 | . . 3 2 . . . Cave-ins Triggered . | . . . . . . . Exploration Rate (%) 20 | 3 34 27 15 34 5 26 Regions Visited 6 Branch Regions 2 Pre-discovered Areas . | . . . . . . . Known Exits Taken 4 | . . 1 1 1 1 . Unknown Exits Taken 2 | 1 1 . . . . . Scrap Searched . | . . . . . . . Spaces Dug 13 | . . . . 11 . 2 Terrain Destroyed 35 | . . . . 33 . 2 Melee 2 | . . . . . . 2 Projectile . | . . . . . . . AOE 33 | . . . . 33 . . Terrain Rammed . | . . . . . . . Walls Destroyed . | . . . . . . . Machines Disabled . | . . . . . . . Actions | -11 -10 -9 -9 -8 -7 -7 --------- Run | Scr Mat Mat Min Mat Fac Sto Total 1711 | 61 389 349 75 324 368 145 Wait 146 | . 39 2 1 48 56 . Move 1413 | 51 308 326 72 258 280 118 Hop 5 | . . 3 2 . . . Pick Up 20 | 4 4 4 . 2 5 1 Fast Attach 20 | 6 4 4 . 3 1 2 Attach 22 | . 2 2 . 5 7 6 Detach 12 | . 3 2 . 3 4 . Swap 5 | . 3 . . 1 . 1 Drop 20 | . 10 6 . . 2 2 Fire 20 | . 16 . . 4 . . Melee 16 | . . . . . 9 7 Ram 12 | . . . . . 4 8 Kick . | . . . . . . . Crush . | . . . . . . . Escape Stasis . | . . . . . . . Rewire . | . . . . . . . Trap . | . . . . . . . Miscellaneous . | . . . . . . . Route ------- -11/Scrapyard -10/Materials -9/Materials -9/Mines -8/Materials -7/Factory -7/Storage History --------- Turn | Location | Event 42 | -11/Scrapyard | Discovered new exit (range 16) 77 | -11/Scrapyard | Entered Materials 349 | -10/Materials | Build established: Mutant 405 | -10/Materials | Discovered new exit (range 6) 412 | -10/Materials | Entered another Materials area 412 | -9/Materials | Evolved 2 slots: Utility x2 549 | -9/Materials | Discovered new exit (range 16) 555 | -9/Materials | Identified exit to Mines 555 | -9/Materials | Entered Mines 578 | -9/Mines | Discovered new exit (range 14) 583 | -9/Mines | Identified exit to Materials 585 | -9/Mines | Entered Materials 585 | -8/Materials | Accompanied by 1 ally 585 | -8/Materials | Evolved 2 slots: Propulsion x1, Utility x1 590 | -8/Materials | Led the pair of lost Derelicts to an unsafe place 738 | -8/Materials | Discovered new exit (range 16) 745 | -8/Materials | Identified exit to Factory 746 | -8/Materials | Entered Factory 746 | -7/Factory | Evolved 2 slots: Power x1, Utility x1 997 | -7/Factory | Fabricated Plasma Cannon (x2) 1045 | -7/Factory | Discovered new exit (range 9) 1067 | -7/Factory | Identified exit to Storage 1199 | -7/Factory | Entered Storage 1305 | -7/Storage | Core integrity fell below 50% 1324 | -7/Storage | Core integrity fell below 20% 1341 | -7/Storage | Lost 12 parts (2p4n5u1w) 1399 | -7/Storage | Destroyed by Y-54 Guardian with Flak Gun Last Messages --------------- 01293_ Slammed into G-47 Trooper. 01295_ U-05 Engineer builds a Wall. 01296_ Slammed into G-47 Trooper. 01296_ Cesium-ion Thruster destroyed. 01297_ Imp. Terrain Scanner destroyed. 01300_ Weight Redist. System destroyed. 01300_ ECM Suite destroyed. 01309_ Utility Shielding destroyed. 01310_ Sml. Storage Unit destroyed. 01313_ Acquired Imp. Medium Armor Plating. 01314_ U-05 Engineer lays Concrete. 01320_ System corrupted: Component data lost. 01323_ K-01 Serf collects debris. 01351_ System corrupted: Matter fused (-7). 01352_ Slammed into R-06 Scavenger. 01372_ G-47 Trooper destroyed. 01392_ Slammed into U-05 Engineer. 01395_ Imp. Medium Armor Plating destroyed. 01398_ Slammed into Y-54 Guardian. 01398_ EM Shotgun destroyed. Map ----- +----------------------------------------------------+ | ??????????????????????????????????? | | ??????????????????????????????????? | | ?????????????#????????????????????? | | ??????????????????????????????????? | | ??????????????????????????????????? | | ??#???????????????????????????????? | | ??????????????????????????????????? | | ?????????#????????????????????????? | | ??????????????????? ??????????????? | | ?????????????????????????#????????? | | ??????????????#???????????????????? | | ???????????????#??????????????????? | | ???#??????????????????????????????? | | ???????????????? ????"????????????? | | ??????????????????????????????????? | | #?????????????????????????????????? | | #?????????????????????????????????? | | #?????????????????????????????????? | | #????????????????????????????#????? | | #??????????????????????????? #????? | | #??#????????????##########?? #????? | | ????????????????# # #????? | | #################! """" #? #????? | | [/% ""??"g# #????? | | /################=""???"g#Y #????? | | ?????#???????# "???""g@ #????? | | #??????#?????# "???" # #????? | | #??????????#?# "??"Y #r #????? | | #????????????# ? gg #? #????? | | ##???????????# +? #????? | | #????????????##########??##????? | | ####??????????????????????????????? | | ??????????????????????????????????? | | ??????????????????????????????????? | | ??????#???????????????????????????? | | ??????????????????????????????????? | | ???#?#????????????????????????????? | | ??????????????????????????????????? | | ???????????????????????#??????????? | | ??????????????????????????????????? | | ??????????????????????????????????? | | ??????????????????????????????????? | | ??????????????????????????????????? | | ??????????????????????????????????? | | ???#??????????????????????????????? | | ??????????????????????????????????? | | #????????#????????????????????????? | | ??????????????????????????????????? | | ??????????????????????????????????? | | ??????????????????????????????????? | +----------------------------------------------------+ Best States ------------- Heat Dissipation 34 Energy Generation 19 Energy Capacity 550 Matter Stores 300 Matter Capacity 300 Sight Range 16 Terrain Scan Range 24 Terrain Scan Density 10 ECM Strength 1 Additional Mass Support 9 Armor Coverage 225 Utility Shielding 33 Evasion (%) 63 Item Schematics ----------------- None Robot Schematics ------------------ None Fabricated ------------ Plasma Cannon | x2 | -7/Factory | Preloaded Alien Tech Used ----------------- None Achievements -------------- Just What I Needed Challenges ------------ None Game ------ Seed GravityHelicalFlakker Manual? 0 Play Time 00:39:34 Cumulative 15.4 hours Start 2020.11.09 @ 23:20:43 End 2020.11.10 @ 00:01:28 Sessions 1 Manual Loads 0 Difficulty Rogue Special Mode Halloween2020/ForbiddenLore Game No. 25 Rogue 25 Adventurer 0 Explorer 0 Win Type - Total 0 Types 0/0/0/0/0/0/0/0/0 Lore% 9 Gallery% 24 Achievement% 14 Wizard Run 0 Options --------- ASCII 1 Keyboard 1 Movement Numpad Keybinds 0 Fullscreen 2 Font 12/Smallcaps Map View 83x54 Tactical HUD 1 Map Filters NONE Filters NONE Steam 1 RUN: 046b5dbb-45c5-4a26-b1f1-d7259228389b